[Event "Betsys MČR v online bleskovém šachu 2021"]
[Site "Chess.com"]
[Date "2021.04.17"]
[Round "13"]
[White "koky_3"]
[Black "Jacques_se_mas"]
[Result "0-1"]
[WhiteElo "2021"]
[BlackElo "1764"]
[TimeControl "180+1"]
[EndTime "11:09:54 PDT"]
[Termination "Uživatel Jacques_se_mas zvítězil po vzdání soupeře"]

1. e4 {[%clk 0:03:00.9]} 1... e6 {[%clk 0:02:59.9]} 2. d4 {[%clk 0:02:55.1]}
2... b6 {[%clk 0:02:58.6]} 3. Bd3 {[%clk 0:02:52.2]} 3... Bb7 {[%clk 0:02:58.6]}
4. Qe2 {[%clk 0:02:51.9]} 4... Nf6 {[%clk 0:02:57.4]} 5. f4 {[%clk 0:02:43.9]}
5... d5 {[%clk 0:02:54.6]} 6. e5 {[%clk 0:02:39.2]} 6... Ne4 {[%clk 0:02:55]} 7.
Nf3 {[%clk 0:02:34.8]} 7... Be7 {[%clk 0:02:51.8]} 8. O-O {[%clk 0:02:33.8]}
8... h6 {[%clk 0:02:48.3]} 9. Nbd2 {[%clk 0:02:33.2]} 9... Nxd2 {[%clk
0:02:47.3]} 10. Bxd2 {[%clk 0:02:32.8]} 10... c5 {[%clk 0:02:47.9]} 11. c3
{[%clk 0:02:21.2]} 11... Qc8 {[%clk 0:02:43.3]} 12. f5 {[%clk 0:02:20.2]} 12...
exf5 {[%clk 0:02:35.5]} 13. Rae1 {[%clk 0:02:10.4]} 13... g6 {[%clk 0:02:30.8]}
14. e6 {[%clk 0:02:10.2]} 14... fxe6 {[%clk 0:02:23.2]} 15. Ne5 {[%clk 0:02:09]}
15... Rg8 {[%clk 0:02:15.2]} 16. Bxh6 {[%clk 0:02:04.7]} 16... Ba6 {[%clk
0:02:14]} 17. Bb5+ {[%clk 0:01:45.6]} 17... Bxb5 {[%clk 0:02:00.1]} 18. Qxb5+
{[%clk 0:01:44.6]} 18... Nd7 {[%clk 0:01:58.8]} 19. Nc6 {[%clk 0:00:51.2]} 19...
a6 {[%clk 0:01:57.2]} 20. Nxe7 {[%clk 0:00:50.4]} 20... Kxe7 {[%clk 0:01:57.4]}
21. Qe2 {[%clk 0:00:48.2]} 21... Qc6 {[%clk 0:01:55.7]} 22. Bg5+ {[%clk
0:00:47.5]} 22... Kf7 {[%clk 0:01:55.6]} 23. h4 {[%clk 0:00:44]} 23... Nf6
{[%clk 0:01:48.7]} 24. Bxf6 {[%clk 0:00:31.6]} 24... Kxf6 {[%clk 0:01:48.8]} 25.
Qe5+ {[%clk 0:00:31.4]} 25... Kf7 {[%clk 0:01:49.5]} 26. Rxf5+ {[%clk
0:00:26.8]} 26... gxf5 {[%clk 0:01:45.7]} 27. Re3 {[%clk 0:00:23.5]} 27... Rg4
{[%clk 0:01:36.8]} 28. h5 {[%clk 0:00:19]} 28... Rag8 {[%clk 0:01:36.6]} 29. g3
{[%clk 0:00:17.7]} 29... cxd4 {[%clk 0:01:24.7]} 30. cxd4 {[%clk 0:00:15.5]}
30... Qc1+ {[%clk 0:01:23.3]} 31. Kf2 {[%clk 0:00:16.1]} 31... Qd2+ {[%clk
0:01:19.4]} 32. Re2 {[%clk 0:00:16]} 32... Qxd4+ {[%clk 0:01:19]} 33. Qxd4
{[%clk 0:00:14.7]} 33... Rxd4 {[%clk 0:01:19.4]} 0-1

[Event "Betsys MČR v online bleskovém šachu 2021"]
[Site "Chess.com"]
[Date "2021.04.17"]
[Round "13"]
[White "Maldaj"]
[Black "Soural_J"]
[Result "1-0"]
[WhiteElo "2391"]
[BlackElo "2194"]
[TimeControl "180+1"]
[EndTime "11:09:55 PDT"]
[Termination "Uživatel Maldaj zvítězil po vzdání soupeře"]

1. e4 {[%clk 0:03:00.9]} 1... c5 {[%clk 0:02:58.9]} 2. Nf3 {[%clk 0:03:00.2]}
2... Nc6 {[%clk 0:02:58.9]} 3. d4 {[%clk 0:03:00.6]} 3... cxd4 {[%clk
0:02:59.8]} 4. Nxd4 {[%clk 0:03:01.5]} 4... g6 {[%clk 0:02:59.7]} 5. Nc3 {[%clk
0:03:01.3]} 5... Bg7 {[%clk 0:02:58.7]} 6. Be3 {[%clk 0:03:01.4]} 6... Nf6
{[%clk 0:02:57.7]} 7. Bc4 {[%clk 0:03:01.6]} 7... Qa5 {[%clk 0:02:58]} 8. O-O
{[%clk 0:02:57.9]} 8... O-O {[%clk 0:02:57.7]} 9. Bb3 {[%clk 0:02:56.5]} 9... d6
{[%clk 0:02:57.7]} 10. h3 {[%clk 0:02:56.4]} 10... Bd7 {[%clk 0:02:56.5]} 11. a3
{[%clk 0:02:56.1]} 11... Nxd4 {[%clk 0:02:51.5]} 12. Bxd4 {[%clk 0:02:55.9]}
12... Bc6 {[%clk 0:02:52]} 13. Qd3 {[%clk 0:02:55.6]} 13... Rad8 {[%clk
0:02:21.7]} 14. Rae1 {[%clk 0:02:50.1]} 14... Nh5 {[%clk 0:02:18.9]} 15. Bxg7
{[%clk 0:02:48.7]} 15... Kxg7 {[%clk 0:02:16]} 16. f4 {[%clk 0:02:40.2]} 16...
Qc5+ {[%clk 0:02:05.9]} 17. Kh2 {[%clk 0:02:37.6]} 17... e5 {[%clk 0:02:02.4]}
18. f5 {[%clk 0:02:20.6]} 18... f6 {[%clk 0:02:01.5]} 19. Nd5 {[%clk 0:01:52.1]}
19... Bb5 {[%clk 0:01:45.5]} 20. c4 {[%clk 0:01:48.9]} 20... Bc6 {[%clk
0:01:45.5]} 21. fxg6 {[%clk 0:01:46.3]} 21... hxg6 {[%clk 0:01:44.7]} 22. Qd2
{[%clk 0:01:34.7]} 22... Bxd5 {[%clk 0:01:42.4]} 23. cxd5 {[%clk 0:01:32.7]}
23... Rc8 {[%clk 0:01:37.6]} 24. Rf3 {[%clk 0:01:28.4]} 24... Qb6 {[%clk
0:01:24]} 25. Ref1 {[%clk 0:01:27]} 25... Rc7 {[%clk 0:01:14.6]} 26. Bd1 {[%clk
0:01:27.2]} 26... Rcf7 {[%clk 0:00:39]} 27. Rb3 {[%clk 0:01:25.2]} 27... Qd4
{[%clk 0:00:34.3]} 28. Qxd4 {[%clk 0:01:24.3]} 28... exd4 {[%clk 0:00:34.5]} 29.
g4 {[%clk 0:01:21.4]} 29... f5 {[%clk 0:00:29.4]} 30. gxh5 {[%clk 0:01:20.2]}
30... fxe4 {[%clk 0:00:29.4]} 31. Rxf7+ {[%clk 0:01:15.3]} 31... Rxf7 {[%clk
0:00:29.4]} 32. Rg3 {[%clk 0:01:15.5]} 32... Rf2+ {[%clk 0:00:29.1]} 33. Rg2
{[%clk 0:01:15.4]} 33... Rxg2+ {[%clk 0:00:27.7]} 34. Kxg2 {[%clk 0:01:15.4]}
34... gxh5 {[%clk 0:00:27.9]} 35. Kg3 {[%clk 0:01:15.5]} 35... Kf6 {[%clk
0:00:26.4]} 36. Kf4 {[%clk 0:01:15.6]} 1-0

[Event "Betsys MČR v online bleskovém šachu 2021"]
[Site "Chess.com"]
[Date "2021.04.17"]
[Round "13"]
[White "berny643"]
[Black "pedroholly22"]
[Result "1-0"]
[WhiteElo "2591"]
[BlackElo "2402"]
[TimeControl "180+1"]
[EndTime "11:10:00 PDT"]
[Termination "Uživatel berny643 zvítězil po vzdání soupeře"]

1. d4 {[%clk 0:03:00.9]} 1... Nf6 {[%clk 0:02:58.1]} 2. c4 {[%clk 0:03:00.6]}
2... e6 {[%clk 0:02:56.7]} 3. Nc3 {[%clk 0:03:01.1]} 3... d5 {[%clk 0:02:56.6]}
4. cxd5 {[%clk 0:02:59.3]} 4... Nxd5 {[%clk 0:02:55.9]} 5. e4 {[%clk 0:02:56.6]}
5... Nxc3 {[%clk 0:02:55.9]} 6. bxc3 {[%clk 0:02:57.2]} 6... c5 {[%clk
0:02:56.8]} 7. a3 {[%clk 0:02:57.1]} 7... Be7 {[%clk 0:02:55]} 8. Nf3 {[%clk
0:02:56.7]} 8... O-O {[%clk 0:02:54.7]} 9. Be2 {[%clk 0:02:54.4]} 9... b6 {[%clk
0:02:54.3]} 10. O-O {[%clk 0:02:51.1]} 10... cxd4 {[%clk 0:02:53.9]} 11. cxd4
{[%clk 0:02:50.7]} 11... Ba6 {[%clk 0:02:53.6]} 12. Bxa6 {[%clk 0:02:44.9]}
12... Nxa6 {[%clk 0:02:53.3]} 13. Qe2 {[%clk 0:02:44.1]} 13... Nb8 {[%clk
0:02:51.1]} 14. Bb2 {[%clk 0:02:42.1]} 14... Nd7 {[%clk 0:02:50.9]} 15. Rfd1
{[%clk 0:02:38.8]} 15... Nf6 {[%clk 0:02:48.7]} 16. d5 {[%clk 0:02:29]} 16...
exd5 {[%clk 0:02:43.5]} 17. exd5 {[%clk 0:02:28.3]} 17... Bd6 {[%clk 0:02:40.9]}
18. Nd4 {[%clk 0:02:25]} 18... Re8 {[%clk 0:02:36.6]} 19. Qf3 {[%clk 0:02:24.5]}
19... Be5 {[%clk 0:02:32.4]} 20. Nc6 {[%clk 0:02:22.8]} 20... Bxb2 {[%clk
0:01:56.8]} 21. Nxd8 {[%clk 0:02:21.7]} 21... Bxa1 {[%clk 0:01:57]} 22. Nc6
{[%clk 0:02:19.2]} 22... Be5 {[%clk 0:01:41.2]} 23. g3 {[%clk 0:02:14.2]} 23...
Bd6 {[%clk 0:01:40.9]} 24. a4 {[%clk 0:02:09.7]} 24... Re4 {[%clk 0:01:38.3]}
25. a5 {[%clk 0:02:06.8]} 25... bxa5 {[%clk 0:01:36.4]} 26. Nxa5 {[%clk
0:02:06.5]} 26... Rae8 {[%clk 0:01:34.4]} 27. Nb7 {[%clk 0:02:05.5]} 27... Bf8
{[%clk 0:01:20.5]} 28. d6 {[%clk 0:02:01.2]} 28... Re1+ {[%clk 0:01:03.1]} 29.
Rxe1 {[%clk 0:01:54.2]} 29... Rxe1+ {[%clk 0:01:04]} 30. Kg2 {[%clk 0:01:54.7]}
30... Re5 {[%clk 0:01:00]} 31. Qc6 {[%clk 0:01:45.3]} 31... Rd5 {[%clk
0:00:54.6]} 32. Qa6 {[%clk 0:01:40.1]} 32... Rd2 {[%clk 0:00:31.5]} 33. Qxa7
{[%clk 0:01:36.1]} 33... h5 {[%clk 0:00:23.3]} 34. Qe3 {[%clk 0:01:29.2]} 34...
Rd5 {[%clk 0:00:20.7]} 35. Qb6 {[%clk 0:01:22.7]} 35... Rd2 {[%clk 0:00:17.9]}
36. Qb4 {[%clk 0:01:20.2]} 36... Ng4 {[%clk 0:00:16]} 37. Qxd2 {[%clk
0:01:18.7]} 1-0

[Event "Betsys MČR v online bleskovém šachu 2021"]
[Site "Chess.com"]
[Date "2021.04.17"]
[Round "13"]
[White "kominekmart"]
[Black "Asmodai5"]
[Result "1-0"]
[WhiteElo "1538"]
[BlackElo "1319"]
[TimeControl "180+1"]
[EndTime "11:10:01 PDT"]
[Termination "Uživatel kominekmart zvítězil po vzdání soupeře"]

1. e4 {[%clk 0:03:00.9]} 1... e5 {[%clk 0:02:59.1]} 2. Nf3 {[%clk 0:03:00]} 2...
Nc6 {[%clk 0:02:59]} 3. Bc4 {[%clk 0:02:59.2]} 3... Bc5 {[%clk 0:02:57.6]} 4. d3
{[%clk 0:02:57.5]} 4... Nf6 {[%clk 0:02:56.9]} 5. O-O {[%clk 0:02:52.4]} 5...
O-O {[%clk 0:02:56.3]} 6. Bg5 {[%clk 0:02:51]} 6... d6 {[%clk 0:02:50.7]} 7. Nc3
{[%clk 0:02:50.2]} 7... Bg4 {[%clk 0:02:49.7]} 8. h3 {[%clk 0:02:49]} 8... Bh5
{[%clk 0:02:48.3]} 9. Nd5 {[%clk 0:02:48]} 9... Nd4 {[%clk 0:02:45]} 10. g4
{[%clk 0:02:35.4]} 10... Nxf3+ {[%clk 0:02:34.5]} 11. Qxf3 {[%clk 0:02:32]}
11... Bg6 {[%clk 0:02:20.7]} 12. Bxf6 {[%clk 0:01:59.8]} 12... gxf6 {[%clk
0:02:19.4]} 13. Qxf6 {[%clk 0:01:56]} 13... Qxf6 {[%clk 0:02:15.6]} 14. Nxf6+
{[%clk 0:01:55.4]} 14... Kg7 {[%clk 0:02:15]} 15. Nd7 {[%clk 0:01:54.9]} 15...
Rfe8 {[%clk 0:02:07.2]} 16. Nxc5 {[%clk 0:01:54.2]} 16... dxc5 {[%clk 0:02:07]}
17. f4 {[%clk 0:01:52.9]} 17... exf4 {[%clk 0:02:06.1]} 18. Rxf4 {[%clk
0:01:51.2]} 18... f6 {[%clk 0:01:58.4]} 19. Raf1 {[%clk 0:01:48.5]} 19... Rf8
{[%clk 0:01:53.9]} 20. h4 {[%clk 0:01:46.3]} 20... Be8 {[%clk 0:01:52.2]} 21. g5
{[%clk 0:01:42.5]} 21... Bd7 {[%clk 0:01:33.1]} 22. Rxf6 {[%clk 0:01:36.4]}
22... Rxf6 {[%clk 0:01:32.4]} 23. Rxf6 {[%clk 0:01:35.6]} 23... Re8 {[%clk
0:01:11.8]} 24. Rf7+ {[%clk 0:01:33.6]} 24... Kg6 {[%clk 0:01:05.9]} 25. Rxd7
{[%clk 0:01:32.1]} 25... Rf8 {[%clk 0:01:05.3]} 26. Rxc7 {[%clk 0:01:23.7]}
26... Rf3 {[%clk 0:01:04.8]} 27. Rxb7 {[%clk 0:01:17.6]} 27... Rh3 {[%clk
0:01:03.7]} 28. Rxa7 {[%clk 0:01:13]} 28... Rxh4 {[%clk 0:01:03.7]} 29. Ra6+
{[%clk 0:01:09.2]} 29... Kh5 {[%clk 0:01:03]} 30. Rc6 {[%clk 0:01:07.7]} 30...
Rg4+ {[%clk 0:01:02.7]} 31. Kf2 {[%clk 0:01:06.8]} 31... Rxg5 {[%clk 0:01:00.2]}
32. a4 {[%clk 0:01:06.2]} 32... Kh4 {[%clk 0:00:56.2]} 33. a5 {[%clk 0:01:04.2]}
33... Kh3 {[%clk 0:00:52]} 34. Rh6+ {[%clk 0:00:54.2]} 34... Kg4 {[%clk
0:00:48.4]} 35. Be6+ {[%clk 0:00:48.6]} 35... Kf4 {[%clk 0:00:48.4]} 36. Rf6+
{[%clk 0:00:44.3]} 1-0

[Event "Betsys MČR v online bleskovém šachu 2021"]
[Site "Chess.com"]
[Date "2021.04.17"]
[Round "13"]
[White "FutureFideMasseur"]
[Black "YawningBagel"]
[Result "0-1"]
[WhiteElo "2403"]
[BlackElo "2012"]
[TimeControl "180+1"]
[EndTime "11:10:04 PDT"]
[Termination "Uživatel YawningBagel zvítězil po vzdání soupeře"]

1. d4 {[%clk 0:03:00.9]} 1... Nf6 {[%clk 0:02:57.8]} 2. c4 {[%clk 0:03:01]} 2...
c5 {[%clk 0:02:58.4]} 3. d5 {[%clk 0:03:00.6]} 3... b5 {[%clk 0:02:59]} 4. Qc2
{[%clk 0:03:01]} 4... b4 {[%clk 0:02:57.2]} 5. e4 {[%clk 0:03:00.3]} 5... d6
{[%clk 0:02:57.7]} 6. Bd3 {[%clk 0:03:00.3]} 6... g6 {[%clk 0:02:57.9]} 7. f4
{[%clk 0:03:00.5]} 7... Bg7 {[%clk 0:02:58.1]} 8. Nf3 {[%clk 0:03:00.7]} 8...
Nbd7 {[%clk 0:02:58.1]} 9. O-O {[%clk 0:03:00.6]} 9... O-O {[%clk 0:02:58.2]}
10. h3 {[%clk 0:02:54.1]} 10... Qc7 {[%clk 0:02:58.2]} 11. Be3 {[%clk
0:02:53.3]} 11... a5 {[%clk 0:02:55.7]} 12. Nbd2 {[%clk 0:02:53]} 12... Bb7
{[%clk 0:02:41]} 13. Rae1 {[%clk 0:02:52.6]} 13... a4 {[%clk 0:02:35.9]} 14. e5
{[%clk 0:02:28.5]} 14... dxe5 {[%clk 0:02:24.5]} 15. fxe5 {[%clk 0:02:28.5]}
15... Nxe5 {[%clk 0:02:17.7]} 16. Nxe5 {[%clk 0:02:28.5]} 16... Qxe5 {[%clk
0:02:16.4]} 17. Bxc5 {[%clk 0:02:28.6]} 17... Qc7 {[%clk 0:02:13.5]} 18. Bxe7
{[%clk 0:02:22.8]} 18... Rfe8 {[%clk 0:02:10.5]} 19. d6 {[%clk 0:01:58.9]} 19...
Qc5+ {[%clk 0:02:07.7]} 20. Kh2 {[%clk 0:01:53.1]} 20... Nh5 {[%clk 0:01:56.6]}
21. Nf3 {[%clk 0:01:47]} 21... Rxe7 {[%clk 0:01:51.7]} 22. dxe7 {[%clk
0:01:39.3]} 22... Re8 {[%clk 0:01:51.6]} 23. Be4 {[%clk 0:01:30.7]} 23... Qc7+
{[%clk 0:01:44.3]} 24. Kg1 {[%clk 0:01:29.2]} 24... Bxe4 {[%clk 0:01:34.9]} 25.
Qxe4 {[%clk 0:01:24.7]} 25... Ng3 {[%clk 0:01:31.3]} 26. Qd5 {[%clk 0:01:14.7]}
26... Nxf1 {[%clk 0:01:29.1]} 27. Rxf1 {[%clk 0:01:13.6]} 27... Qxe7 {[%clk
0:01:26.6]} 28. Ng5 {[%clk 0:01:09.7]} 28... Rd8 {[%clk 0:01:08.4]} 29. Qxf7+
{[%clk 0:00:59.8]} 29... Qxf7 {[%clk 0:01:06.1]} 30. Nxf7 {[%clk 0:01:00]} 30...
Rd2 {[%clk 0:01:03.8]} 31. b3 {[%clk 0:00:59.1]} 31... Rxa2 {[%clk 0:00:52.2]}
32. bxa4 {[%clk 0:00:59.3]} 32... b3 {[%clk 0:00:31.5]} 33. c5 {[%clk
0:00:59.4]} 33... b2 {[%clk 0:00:29.7]} 34. c6 {[%clk 0:00:58.7]} 34... Ra1
{[%clk 0:00:27.8]} 0-1

[Event "Betsys MČR v online bleskovém šachu 2021"]
[Site "Chess.com"]
[Date "2021.04.17"]
[Round "13"]
[White "Pokemonchess"]
[Black "jachym08"]
[Result "0-1"]
[WhiteElo "1950"]
[BlackElo "2208"]
[TimeControl "180+1"]
[EndTime "11:10:05 PDT"]
[Termination "Uživatel jachym08 zvítězil matem"]

1. e4 {[%clk 0:03:00.9]} 1... c5 {[%clk 0:02:59.1]} 2. Nf3 {[%clk 0:03:00.4]}
2... Nc6 {[%clk 0:02:58.9]} 3. d4 {[%clk 0:03:00.4]} 3... cxd4 {[%clk
0:02:59.8]} 4. Nxd4 {[%clk 0:03:01]} 4... Nf6 {[%clk 0:03:00]} 5. Nc3 {[%clk
0:03:01.3]} 5... e5 {[%clk 0:03:00.2]} 6. Ndb5 {[%clk 0:02:59.9]} 6... d6 {[%clk
0:03:00.1]} 7. Nd5 {[%clk 0:02:58]} 7... Nxd5 {[%clk 0:02:59.3]} 8. exd5 {[%clk
0:02:57.8]} 8... Nb8 {[%clk 0:02:59.5]} 9. Be3 {[%clk 0:02:55.5]} 9... Be7
{[%clk 0:02:58.1]} 10. Bd3 {[%clk 0:02:50.7]} 10... O-O {[%clk 0:02:54.9]} 11.
Qd2 {[%clk 0:02:46.5]} 11... Nd7 {[%clk 0:02:51.8]} 12. f3 {[%clk 0:02:42.6]}
12... f5 {[%clk 0:02:42.7]} 13. O-O-O {[%clk 0:02:39.1]} 13... a6 {[%clk
0:02:34.2]} 14. Nc3 {[%clk 0:02:38.3]} 14... b5 {[%clk 0:02:31.9]} 15. g4 {[%clk
0:02:38.2]} 15... f4 {[%clk 0:02:26.9]} 16. Bf2 {[%clk 0:02:38.2]} 16... Bb7
{[%clk 0:02:26.2]} 17. Bf5 {[%clk 0:02:27.8]} 17... g6 {[%clk 0:02:19.9]} 18.
Be6+ {[%clk 0:02:26.7]} 18... Kg7 {[%clk 0:02:19.3]} 19. h4 {[%clk 0:02:26.2]}
19... Nf6 {[%clk 0:02:13.7]} 20. Qd3 {[%clk 0:02:20.1]} 20... Qa5 {[%clk
0:02:04.9]} 21. h5 {[%clk 0:02:03.3]} 21... b4 {[%clk 0:01:57.9]} 22. hxg6
{[%clk 0:01:50.4]} 22... hxg6 {[%clk 0:01:57.3]} 23. Ne4 {[%clk 0:01:32.8]}
23... Qxa2 {[%clk 0:01:51.1]} 24. Nxf6 {[%clk 0:01:29.1]} 24... Bxf6 {[%clk
0:01:49.3]} 25. Rh2 {[%clk 0:01:19.9]} 25... e4 {[%clk 0:01:46.8]} 26. Qxe4
{[%clk 0:01:06.4]} 26... Qxb2+ {[%clk 0:01:46.1]} 27. Kd2 {[%clk 0:01:06]} 27...
Qc3+ {[%clk 0:01:46]} 28. Ke2 {[%clk 0:01:05.4]} 28... a5 {[%clk 0:01:31.7]} 29.
Kf1 {[%clk 0:00:48.5]} 29... Ba6+ {[%clk 0:01:28.4]} 30. Kg2 {[%clk 0:00:47.9]}
30... Qc4 {[%clk 0:01:20.8]} 31. Rdh1 {[%clk 0:00:35.1]} 31... Rh8 {[%clk
0:01:12.7]} 32. Rxh8 {[%clk 0:00:31.8]} 32... Rxh8 {[%clk 0:01:13.6]} 33. Rxh8
{[%clk 0:00:31.2]} 33... Qf1+ {[%clk 0:01:11.7]} 34. Kh2 {[%clk 0:00:25.2]}
34... Qxf2+ {[%clk 0:01:11.6]} 35. Kh1 {[%clk 0:00:25.5]} 35... Kxh8 {[%clk
0:01:08.7]} 36. Qxg6 {[%clk 0:00:24.2]} 36... Qxf3+ {[%clk 0:01:08.4]} 37. Kh2
{[%clk 0:00:24.1]} 37... Qg3+ {[%clk 0:01:06.6]} 38. Kh1 {[%clk 0:00:23.6]}
38... Qh3+ {[%clk 0:01:07.5]} 39. Kg1 {[%clk 0:00:23.5]} 39... Bd4# {[%clk
0:01:08.4]} 0-1

[Event "Betsys MČR v online bleskovém šachu 2021"]
[Site "Chess.com"]
[Date "2021.04.17"]
[Round "13"]
[White "JuliliaR"]
[Black "KarelZalesky"]
[Result "0-1"]
[WhiteElo "1465"]
[BlackElo "1748"]
[TimeControl "180+1"]
[EndTime "11:10:06 PDT"]
[Termination "Uživatel KarelZalesky zvítězil matem"]

1. d4 {[%clk 0:03:00.9]} 1... d5 {[%clk 0:02:57.5]} 2. c4 {[%clk 0:03:00.7]}
2... e6 {[%clk 0:02:56.9]} 3. Nc3 {[%clk 0:02:59.2]} 3... Nf6 {[%clk 0:02:55.8]}
4. Nf3 {[%clk 0:02:58.9]} 4... Bb4 {[%clk 0:02:54.9]} 5. Qc2 {[%clk 0:02:54.6]}
5... Ne4 {[%clk 0:02:52]} 6. cxd5 {[%clk 0:02:47.4]} 6... exd5 {[%clk
0:02:49.6]} 7. Bf4 {[%clk 0:02:41.3]} 7... Nc6 {[%clk 0:02:41.4]} 8. e3 {[%clk
0:02:40.2]} 8... a6 {[%clk 0:02:39]} 9. a3 {[%clk 0:02:35.3]} 9... Bxc3+ {[%clk
0:02:25.1]} 10. bxc3 {[%clk 0:02:33.7]} 10... g5 {[%clk 0:01:54.2]} 11. Bg3
{[%clk 0:02:23.1]} 11... h5 {[%clk 0:01:49.5]} 12. Bd3 {[%clk 0:02:14.7]} 12...
f5 {[%clk 0:01:48.5]} 13. Be5 {[%clk 0:02:10.6]} 13... Nxe5 {[%clk 0:01:41.4]}
14. Nxe5 {[%clk 0:02:10.2]} 14... g4 {[%clk 0:01:15.2]} 15. f3 {[%clk
0:02:04.8]} 15... gxf3 {[%clk 0:00:50.3]} 16. gxf3 {[%clk 0:02:03.7]} 16... Qh4+
{[%clk 0:00:48.6]} 17. Kd1 {[%clk 0:02:02.3]} 17... Nf2+ {[%clk 0:00:46.6]} 18.
Kd2 {[%clk 0:01:57.6]} 18... Nxh1 {[%clk 0:00:44.1]} 19. Rxh1 {[%clk 0:01:55.2]}
19... Qf2+ {[%clk 0:00:37.7]} 20. Be2 {[%clk 0:01:52.9]} 20... Qg2 {[%clk
0:00:32.4]} 21. Qd1 {[%clk 0:01:50]} 21... Rg8 {[%clk 0:00:30.4]} 22. f4 {[%clk
0:01:45.1]} 22... Bd7 {[%clk 0:00:25.1]} 23. Kc1 {[%clk 0:01:37.8]} 23... O-O-O
{[%clk 0:00:18.4]} 24. Bf3 {[%clk 0:01:35]} 24... Qa2 {[%clk 0:00:15.5]} 25. Qc2
{[%clk 0:01:26.6]} 25... Qxa3+ {[%clk 0:00:15.6]} 26. Kd2 {[%clk 0:01:23.7]}
26... Ba4 {[%clk 0:00:14.4]} 27. Qxf5+ {[%clk 0:01:20.5]} 27... Kb8 {[%clk
0:00:11.7]} 28. Rb1 {[%clk 0:01:15.6]} 28... Qa2+ {[%clk 0:00:11.2]} 29. Kc1
{[%clk 0:01:02.4]} 29... Rg1+ {[%clk 0:00:10.7]} 30. Bd1 {[%clk 0:01:01.1]}
30... Rxd1# {[%clk 0:00:09.8]} 0-1

[Event "Betsys MČR v online bleskovém šachu 2021"]
[Site "Chess.com"]
[Date "2021.04.17"]
[Round "13"]
[White "Eliska0107"]
[Black "mendryxchess"]
[Result "1-0"]
[WhiteElo "2049"]
[BlackElo "1810"]
[TimeControl "180+1"]
[EndTime "11:10:07 PDT"]
[Termination "Uživatel Eliska0107 zvítězil po vzdání soupeře"]

1. e4 {[%clk 0:03:00.9]} 1... c5 {[%clk 0:02:59.8]} 2. Nc3 {[%clk 0:03:00.7]}
2... Nc6 {[%clk 0:02:59]} 3. g3 {[%clk 0:03:00.9]} 3... d6 {[%clk 0:02:58.8]} 4.
Bg2 {[%clk 0:03:01.2]} 4... g6 {[%clk 0:02:58.9]} 5. d3 {[%clk 0:03:01.5]} 5...
Bg7 {[%clk 0:02:59]} 6. Be3 {[%clk 0:03:01.7]} 6... e6 {[%clk 0:02:59.5]} 7. Qd2
{[%clk 0:03:01.9]} 7... Nge7 {[%clk 0:03:00.1]} 8. Bh6 {[%clk 0:03:01.5]} 8...
O-O {[%clk 0:02:57.1]} 9. h4 {[%clk 0:03:01.3]} 9... d5 {[%clk 0:02:50.8]} 10.
h5 {[%clk 0:03:00.1]} 10... d4 {[%clk 0:02:42.4]} 11. Bxg7 {[%clk 0:02:54.4]}
11... Kxg7 {[%clk 0:02:42.1]} 12. hxg6 {[%clk 0:02:54.2]} 12... fxg6 {[%clk
0:02:29.7]} 13. Qh6+ {[%clk 0:02:52.4]} 13... Kf7 {[%clk 0:02:30.1]} 14. Qxh7+
{[%clk 0:02:51.6]} 14... Ke8 {[%clk 0:02:30.7]} 15. Nce2 {[%clk 0:02:41.5]}
15... Nb4 {[%clk 0:02:27.6]} 16. Rc1 {[%clk 0:02:27.6]} 16... Qa5 {[%clk
0:02:25.8]} 17. Kf1 {[%clk 0:02:16.4]} 17... Bd7 {[%clk 0:02:12]} 18. Nf3 {[%clk
0:02:15.4]} 18... Ba4 {[%clk 0:02:00.4]} 19. Qg7 {[%clk 0:02:08.7]} 19... Kd7
{[%clk 0:01:55]} 20. Rh7 {[%clk 0:02:02.5]} 20... Rae8 {[%clk 0:01:52.8]} 21.
Qxg6 {[%clk 0:01:54.2]} 21... Bxc2 {[%clk 0:01:52.1]} 22. Ne5+ {[%clk
0:01:49.2]} 22... Kc7 {[%clk 0:01:48.1]} 23. Qxe6 {[%clk 0:01:46.6]} 23... Nxd3
{[%clk 0:01:26.6]} 24. Rxe7+ {[%clk 0:01:44.4]} 24... Rxe7 {[%clk 0:01:23.7]}
25. Qxe7+ {[%clk 0:01:44]} 25... Kb8 {[%clk 0:01:24.2]} 26. Qxf8+ {[%clk
0:01:43.3]} 26... Kc7 {[%clk 0:01:24.6]} 27. Qe7+ {[%clk 0:01:43.5]} 27... Kb8
{[%clk 0:01:24.5]} 28. Nd7+ {[%clk 0:01:33.7]} 28... Kc8 {[%clk 0:01:22.3]} 29.
Nxc5 {[%clk 0:01:14]} 29... Nxc5 {[%clk 0:01:04]} 30. Rxc2 {[%clk 0:01:09.6]}
30... b6 {[%clk 0:01:03.2]} 31. Nxd4 {[%clk 0:01:05.5]} 31... Qxa2 {[%clk
0:00:55.3]} 32. e5 {[%clk 0:00:56.9]} 32... Qb1+ {[%clk 0:00:52.2]} 33. Ke2
{[%clk 0:00:55.5]} 33... Qg1 {[%clk 0:00:35.3]} 34. Qb7+ {[%clk 0:00:53.5]}
34... Kd8 {[%clk 0:00:32.4]} 35. Nc6+ {[%clk 0:00:53.4]} 1-0